Cogmind - Beta 9.3 @@@ ROGUE MODE // 2019.12.20 @ 23:25:52 Player: Andru7428 Result: Self-destructed Performance ------------- Evolutions (3) 1500 Regions Visited (6) 1200 Robots Destroyed (57) 285 Value Destroyed (1558) 1558 Prototype IDs (23) 460 Alien Tech Used (0) 0 Bonus (314) 314 TOTAL SCORE: 5317 Bonus ------- Follower Combat Kills 14 Aligned with FarCom 300 Cogmind --------- Core Integrity 544/700 Matter 257/300 Energy 290/290 System Corruption 4% Temperature Cool (0) Movement Treading (240) Ox4 Location -7/Factory Parts ------- > --- POWER (1) -------- Improved Deuterium Engine > --- PROPULSION (2) --- Light Treads > --- UTILITY (8) ------ Improved Heat Sink Large Storage Unit Large Storage Unit High-capacity Storage Unit Advanced Visual Processing Unit > --- WEAPON (2) ------- AWS/Thermal > --- INVENTORY (24) --- Deuterium Engine Wheel Cesium-ion Thruster Improved Heat Sink High-capacity Storage Unit Large Matter Pod (150) Target Analyzer Cloak of Protection Supersonic Drone Bay (1/1) Shock Rifle Precision Shock Rifle Small Laser Light Assault Rifle Light Assault Rifle Grenade Launcher Grenade Launcher Remote Datajack Great Axe Peak State ------------ > --- POWER ------------ Improved Deuterium Engine > --- PROPULSION ------- Light Treads > --- UTILITY ---------- Improved Heat Sink Large Storage Unit Large Storage Unit High-capacity Storage Unit Advanced Visual Processing Unit > --- WEAPON ----------- AWS/Thermal > --- INVENTORY -------- Deuterium Engine Wheel Cesium-ion Thruster Improved Heat Sink High-capacity Storage Unit Large Matter Pod Target Analyzer Cloak of Protection Supersonic Drone Bay Shock Rifle Precision Shock Rifle Small Laser Light Assault Rifle Light Assault Rifle Grenade Launcher Grenade Launcher Remote Datajack Great Axe [Rating: 35] Favorites ----------- Power Light Nuclear Core Engine Light Ion Engine Power Core Light Nuclear Core Propulsion Wheel Treads Light Treads Leg Aluminum Leg Wheel Wheel Utility Large Storage Unit Device Improved Heat Sink Storage Large Storage Unit Processor Targeting Computer Protection Hardened Medium Armor Plating Weapon Small Laser Energy Gun Small Laser Ballistic Gun Light Assault Rifle Ballistic Cannon Advanced Assault Cannon Launcher Grenade Launcher Build | -11 -10 -10 -10 -9 -8 -7 ------- Run | Scr Mat Min Exi Min Mat Fac Slots Evolved 6 | . . . . . 4 2 Power . | . . . . . . . Propulsion . | . . . . . . . Utility 6 | . . . . . 4 2 Weapon . | . . . . . . . Parts Attached 71 | 6 22 1 5 1 18 18 Power 10 | 1 3 1 . . 3 2 Engine 8 | 1 3 . . . 2 2 Core 2 | . . 1 . . 1 . Reactor . | . . . . . . . Propulsion 20 | 2 10 . . . 1 7 Treads 1 | . . . . . . 1 Leg 8 | . 5 . . . . 3 Wheel 11 | 2 5 . . . 1 3 Hover . | . . . . . . . Flight . | . . . . . . . Utility 18 | 1 4 . 5 . 5 3 Device 3 | . . . 1 . 1 1 Storage 10 | 1 4 . 4 . 1 . Processor 2 | . . . . . 1 1 Hackware . | . . . . . . . Protection 3 | . . . . . 2 1 Artifact . | . . . . . . . Weapon 23 | 2 5 . . 1 9 6 Energy Gun 9 | 1 3 . . . 3 2 Energy Cannon . | . . . . . . . Ballistic Gun 8 | 1 2 . . . 3 2 Ballistic Cannon 3 | . . . . . 1 2 Launcher 3 | . . . . 1 2 . Special Weapon . | . . . . . . . Impact Weapon . | . . . . . . . Slashing Weapon . | . . . . . . . Piercing Weapon . | . . . . . . . Special Melee Weapon . | . . . . . . . Unidentified Prototypes 1 | . . . . . . 1 Parts Lost 31 | . 12 . . . 5 14 Power 5 | . 2 . . . 2 1 Propulsion 13 | . 5 . . . 1 7 Utility 4 | . . . . . 1 3 Weapon 9 | . 5 . . . 1 3 Highest Loss Streak 6 | . 6 . . . 5 6 Average Slot Usage (%) 91 | . 89 100 100 100 90 86 Engine 7 | . 13 3 . . 5 7 Core 3 | . . 10 14 14 3 . Leg 1 | . 5 . . . . 1 Wheel 19 | . 21 28 28 28 18 11 Device 4 | . . . . . 9 7 Storage 24 | . 22 28 27 28 27 23 Processor 3 | . . . . . 2 10 Protection 4 | . . . . . 6 9 Energy Gun 7 | . 8 14 14 14 8 . Ballistic Gun 8 | . 15 14 14 . 8 1 Ballistic Cannon 3 | . . . . . . 12 Launcher 1 | . . . . 14 . . Naked Turns . | . . . . . . . Heaviest Build 95 | 11 55 55 55 41 90 95 Greatest Support 26 | 20 26 20 20 20 20 26 Greatest Overweight (x) 27 | . 5 2 2 2 4 27 Average Overweight (x) 2 | . 1 2 1 2 3 3 Largest Inventory Capacity 24 | 6 18 18 20 16 24 24 Average Capacity 19 | 5 12 18 17 16 24 24 Most Carried 24 | 6 15 18 19 16 18 24 Average Carried 15 | 3 8 16 16 15 15 21 Final Capacity 24 | 6 18 18 16 16 24 24 Final Carried 18 | 4 15 18 15 16 18 18 Class Distribution -------------------- 43% | Scavenger-Mutant 29% | Hauler-Mutant 26% | Mutant Dominant Class ---------------- Mutant | -10/Materials Scavenger-Mutant | -10/Mines Scavenger-Mutant | -10/Exiles Scavenger-Mutant | -9/Mines Hauler-Mutant | -8/Materials Hauler-Mutant | -7/Factory Resources | -11 -10 -10 -10 -9 -8 -7 ----------- Run | Scr Mat Min Exi Min Mat Fac Matter Collected 1827 | 221 464 16 . 45 172 909 Remotely . | . . . . . . . Salvage Created 1546 | . 627 55 . 7 185 672 Parts 101 | . 41 2 . 1 17 40 Haulers Intercepted 1 | . . . . . . 1 Recyclers Shooed 3 | . 1 . . . 1 1 Parts Field Recycled . | . . . . . . . Retrieved Matter . | . . . . . . . Parts Self-Destructed . | . . . . . . . Prevented . | . . . . . . . Kills | -11 -10 -10 -10 -9 -8 -7 ------- Run | Scr Mat Min Exi Min Mat Fac Combat Hostiles Destroyed 41 | . 14 1 . 2 9 15 Melee 1 | . 1 . . . . . Guns 20 | . 13 1 . . 2 4 Cannons 11 | . . . . . . 11 AOE 9 | . . . . 2 7 . Classes Destroyed 10 | . 6 . . . 1 3 Worker 7 | . 2 . . . 2 3 Builder 3 | . 2 . . . . 1 Hauler 1 | . . . . . . 1 Recycler 3 | . 1 . . . 1 1 Watcher 2 | . 1 . . . . 1 Swarmer 13 | . 3 . . 2 8 . Grunt 16 | . 11 1 . . . 4 Duelist 2 | . . . . . . 2 Hunter 4 | . . . . . 1 3 Programmer 6 | . . . . . . 6 Best Kill Streak 6 | . 5 1 . 2 6 4 Combat Bots Only 5 | . 3 1 . 2 5 3 Max Kills in Single Turn 2 | . 1 1 . 1 2 2 Gunslinging . | . . . . . . . Exploded 2 | . . . . 1 2 . Melee 1 | . 1 . . . . . Uniques/NPCs Destroyed . | . . . . . . . Combat | -11 -10 -10 -10 -9 -8 -7 -------- Run | Scr Mat Min Exi Min Mat Fac Damage Taken 3241 | . 997 86 . 21 714 1423 Core 559 | . 186 61 . . 156 156 Absorbed by Shields . | . . . . . . . Core Remaining (%) 57 | 100 . . . 1 71 . Volleys Fired 167 | . 69 6 . 2 34 56 Largest 2 | . 2 2 . 1 2 2 Hottest 93 | . 70 60 . 30 93 92 Shots Fired 305 | . 137 12 . 2 46 108 Gun 205 | . 137 12 . . 33 23 Cannon 90 | . . . . . 5 85 Launcher 10 | . . . . 2 8 . Special . | . . . . . . . Kinetic 199 | . 83 6 . . 12 98 Thermal 96 | . 54 6 . . 26 10 Explosive 10 | . . . . 2 8 . Electromagnetic . | . . . . . . . Robot Hit Streak 11 | . 10 8 . 9 9 11 Robot Miss Streak 6 | . 6 3 . . 4 4 Penetration Max . | . . . . . . . Secondary Targets . | . . . . . . . Autonomous 10 | . . . . . . 10 Shots Hit Robots 195 | . 91 8 . 1 20 75 Core Hits 107 | . 38 4 . 2 24 39 Critical Hits 5 | . 3 . . . . 2 Critical Kills 1 | . . . . . . 1 Critical Parts Destroyed 4 | . 3 . . . . 1 Melee Attacks . | . . . . . . . Impact . | . . . . . . . Slashing . | . . . . . . . Piercing . | . . . . . . . Sneak Attacks . | . . . . . . . Combat Hostiles . | . . . . . . . Follow-up Attacks . | . . . . . . . Damage Inflicted 4040 | . 899 87 . 115 728 2211 Guns 1803 | . 895 87 . . 274 547 Cannons 1647 | . . . . . . 1647 Explosions 569 | . . . . 115 454 . Melee . | . . . . . . . Ramming 21 | . 4 . . . . 17 Kinetic 2424 | . 459 32 . . 52 1881 Thermal 1026 | . 436 55 . . 222 313 Explosive 569 | . . . . 115 454 . Electromagnetic . | . . . . . . . Impact . | . . . . . . . Slashing . | . . . . . . . Piercing . | . . . . . . . Highest Corruption 4 | . . . . . . 4 Average Corruption 2 | . . . . . . 2 Corruption Purged . | . . . . . . . Effects 11 | . . . . . . 11 Message Errors 2 | . . . . . . 2 Matter Fused 1 | . . . . . . 1 Energy Discharges 1 | . . . . . . 1 Parts Rejected 1 | . . . . . . 1 Data Loss (minor) 2 | . . . . . . 2 Targeting Errors 3 | . . . . . . 3 Weapon Failures 1 | . . . . . . 1 Overload Shots . | . . . . . . . Overflow Damage 44 | . . . . . 5 39 Projectiles 39 | . . . . . . 39 Explosions 5 | . . . . . 5 . Melee . | . . . . . . . Knockbacks 25 | . . . . . . 25 Impact . | . . . . . . . Kinetic 22 | . . . . . . 22 Secondary 3 | . . . . . . 3 Self-Inflicted Damage 57 | . 1 . . 23 25 8 Shots 2 | . . . . 1 1 . Rammed 4 | . 3 . . . . 1 Targets Rammed 6 | . 5 . . . . 1 Kicked 2 | . 2 . . . . . Crushed . | . . . . . . . Highest Temperature 167 | . 167 85 . . 5 2 Average Temperature 41 | . 44 40 . . 2 1 Received Heat Transfer 975 | . 447 51 . . 117 360 Siege Activations . | . . . . . . . Robots Corrupted . | . . . . . . . Combat Hostiles . | . . . . . . . Parts Fried . | . . . . . . . Impact Corruptions . | . . . . . . . Robots Melted . | . . . . . . . Combat Hostiles . | . . . . . . . Parts Melted 1 | . . . . . . 1 Heat Transferred 2111 | . 1118 125 . . 498 370 Parts Sabotaged . | . . . . . . . Parts Stolen . | . . . . . . . Parts Stripped . | . . . . . . . Power Chain Reactions . | . . . . . . . Missiles Intercepted . | . . . . . . . Alert | -11 -10 -10 -10 -9 -8 -7 ------- Run | Scr Mat Min Exi Min Mat Fac Peak Influence 283 | . 187 57 . 108 283 197 Average Influence 86 | . 71 51 . 58 141 81 Maximum Alert Level 1 | . . . . . 1 . Low Security (%) 93 | 100 100 100 . 100 72 100 Level 1 6 | . . . . . 27 . Level 2 . | . . . . . . . Level 3 . | . . . . . . . Level 4 . | . . . . . . . Level 5 . | . . . . . . . High Security . | . . . . . . . Max Security . | . . . . . . . Squads Dispatched 9 | . 2 . . . 1 6 Investigation 1 | . 1 . . . . . Extermination 4 | . . . . . . 4 Reinforcement 4 | . 1 . . . 1 2 Assault . | . . . . . . . Garrison . | . . . . . . . Intercept . | . . . . . . . Construction Impeded 1 | . . . . . . 1 Haulers Reinforced . | . . . . . . . Stealth | -11 -10 -10 -10 -9 -8 -7 --------- Run | Scr Mat Min Exi Min Mat Fac Distress Signals 4 | . . . . . 2 2 Communications Jammed . | . . . . . . . Distress Signals . | . . . . . . . Times Spotted 69 | . 22 2 . 1 19 25 Peak Tracking Total 7 | . 4 2 . 1 7 5 Tactical Retreats 4 | . . 1 . . 3 . Traps | -11 -10 -10 -10 -9 -8 -7 ------- Run | Scr Mat Min Exi Min Mat Fac Traps Triggered 4 | . 3 . . . . 1 Indirectly . | . . . . . . . Trap Hack Attempts . | . . . . . . . Triggered . | . . . . . . . Disarmed . | . . . . . . . Reprogrammed . | . . . . . . . Reused . | . . . . . . . Traps Extracted . | . . . . . . . Installed . | . . . . . . . Triggered . | . . . . . . . Machines | -11 -10 -10 -10 -9 -8 -7 ---------- Run | Scr Mat Min Exi Min Mat Fac Machines Disabled 2 | . . . . 2 . . Max in Single Turn 1 | . . . . 1 . . Machines Sabotaged . | . . . . . . . Garrisons Compromised . | . . . . . . . Overloaded Fab Kills . | . . . . . . . Fab Network Shutdowns . | . . . . . . . Hacking | -11 -10 -10 -10 -9 -8 -7 --------- Run | Scr Mat Min Exi Min Mat Fac Machines Accessed 9 | . 4 . 1 . 2 2 Terminals 7 | . 4 . . . 2 1 Fabricators . | . . . . . . . Repair Stations . | . . . . . . . Recycling Units 1 | . . . . . . 1 Scanalyzers . | . . . . . . . Garrison Access . | . . . . . . . Total Hacks 18 | . 10 . 1 . 3 4 Successful 7 | . 5 . 1 . 1 . Failed 11 | . 5 . . . 2 4 Catastrophic 2 | . . . . . 1 1 Database Lockouts . | . . . . . . . Manual 12 | . 8 . 1 . 2 1 Terminals 14 | . 10 . . . 3 1 Fabricators . | . . . . . . . Repair Stations . | . . . . . . . Recycling Units 3 | . . . . . . 3 Scanalyzers . | . . . . . . . Garrison Access . | . . . . . . . Terminal Hacks 4 | . 2 . 1 . 1 . Part Schematic 1 | . 1 . . . . . Alert Level 1 | . . . . . 1 . Unreport Threat 1 | . 1 . . . . . EX-Prototype ID Bank 1 | . . . 1 . . . Fabricator Hacks . | . . . . . . . Repair Station Hacks . | . . . . . . . Recycling Unit Hacks . | . . . . . . . Scanalyzer . | . . . . . . . Garrison Access Hacks . | . . . . . . . Unauthorized Hacks 10 | . 10 . . . . . Terminals 3 | . 3 . . . . . Track 2 | . 2 . . . . . Assimilate 1 | . 1 . . . . . Fabricators . | . . . . . . . Repair Stations . | . . . . . . . Recycling Units . | . . . . . . . Scanalyzers . | . . . . . . . Garrison Access . | . . . . . . . Data Cores Recovered . | . . . . . . . Used . | . . . . . . . Hacking Detections 6 | . 3 . . . 1 2 Full Trace Events . | . . . . . . . Feedback Events . | . . . . . . . Feedback Blocked . | . . . . . . . Robot Schematics Acquired . | . . . . . . . Robots Built . | . . . . . . . Matter . | . . . . . . . Time . | . . . . . . . Total Robot Build Rating . | . . . . . . . Part Schematics Acquired 1 | . 1 . . . . . Parts Built . | . . . . . . . Matter . | . . . . . . . Time . | . . . . . . . Total Part Build Rating . | . . . . . . . Parts Repaired . | . . . . . . . Time . | . . . . . . . Parts Recycled . | . . . . . . . Recycled Matter . | . . . . . . . Retrieved Matter . | . . . . . . . Retrieved Components . | . . . . . . . Parts Scanalyzed . | . . . . . . . Part Schematics Acquired . | . . . . . . . Parts Damaged . | . . . . . . . Bothacking | -11 -10 -10 -10 -9 -8 -7 ------------ Run | Scr Mat Min Exi Min Mat Fac Used RIF Installer . | . . . . . . . Robots Hacked . | . . . . . . . Non-combat . | . . . . . . . Combat . | . . . . . . . Robot Hacks Applied . | . . . . . . . Relay Couplers Released 4 | . . . . . . 4 Programmers 4 | . . . . . . 4 Robots Rewired . | . . . . . . . Allies Hacked . | . . . . . . . Hacks Repelled . | . . . . . . . Allies | -11 -10 -10 -10 -9 -8 -7 -------- Run | Scr Mat Min Exi Min Mat Fac Total Allies 4 | . 1 3 . . . . Largest Group 3 | . 1 3 3 3 . . Highest-Rated Group 40 | . 10 40 40 40 . . Highest-Rated Ally 16 | . 10 16 16 16 . . Total Orders 8 | . 4 . 2 2 . . GOTO 4 | . 2 . . 2 . . FOLLOW 2 | . 2 . . . . . RETURN 2 | . . . 2 . . . Ally Attacks 11 | . . . . 11 . . Total Damage 89 | . . . . 89 . . Kills 3 | . . . . 3 . . Allies Corrupted . | . . . . . . . Allies Melted . | . . . . . . . Intel | -11 -10 -10 -10 -9 -8 -7 ------- Run | Scr Mat Min Exi Min Mat Fac Robot Analysis Total . | . . . . . . . Derelict Logs Recovered 2 | . . 2 . . . . Drone Launches 2 | . . . 2 . . . Drone Recoveries 2 | . . . 2 . . . Exploration | -11 -10 -10 -10 -9 -8 -7 ------------- Run | Scr Mat Min Exi Min Mat Fac Turns Passed 3727 | 59 975 155 482 252 701 1103 Spaces Moved 2408 | 55 524 121 455 185 434 634 Core 11 | 4 1 . . . . 6 Treads 23 | . . . . . . 23 Legs 54 | . 36 . . . . 18 Wheels 2320 | 51 487 121 455 185 434 587 Hover . | . . . . . . . Flight . | . . . . . . . Fastest Speed 50 | 50 80 100 90 100 110 120 Average Speed 113 | 77 105 100 95 100 117 140 Slowest Speed 1400 | 80 250 100 100 100 120 1400 Overloaded Moves . | . . . . . . . Propulsion Burnouts . | . . . . . . . Robots Hopped . | . . . . . . . Cave-ins Triggered . | . . . . . . . Exploration Rate (%) 40 | 3 65 35 89 49 31 11 Regions Visited 6 Branch Regions 3 Pre-discovered Areas 1 | . . 1 . . . . Known Exits Taken 1 | . . . . . 1 . Unknown Exits Taken 5 | 1 1 1 1 1 . . Scrap Searched 1 | . . 1 . . . . Spaces Dug 1 | . . . . . 1 . Terrain Destroyed 70 | . . . . 10 49 11 Melee . | . . . . . . . Projectile 12 | . . . . . 1 11 AOE 58 | . . . . 10 48 . Actions | -11 -10 -10 -10 -9 -8 -7 --------- Run | Scr Mat Min Exi Min Mat Fac Total 3112 | 70 821 143 507 249 574 748 Wait 362 | . 167 13 26 61 78 17 Move 2402 | 54 523 120 454 184 433 634 Hop . | . . . . . . . Pick Up 79 | 10 28 3 10 1 11 16 Fast Attach 6 | . 2 . 2 . . 2 Attach 38 | 6 12 . . . 9 11 Detach 2 | . 1 . 1 . . . Swap 27 | . 8 1 3 1 9 5 Drop 22 | . 6 . 10 . . 6 Fire 167 | . 69 6 . 2 34 56 Melee . | . . . . . . . Ram 1 | . . . . . . 1 Kick 5 | . 5 . . . . . Crush . | . . . . . . . Escape Stasis . | . . . . . . . Rewire . | . . . . . . . Trap . | . . . . . . . Miscellaneous 1 | . . . 1 . . . Route ------- -11/Scrapyard -10/Materials (discovered 3 exits: [*Mat x2] / [*Min]) -10/Mines (discovered 2 exits: [*Mat] / *Exi) -10/Exiles -9/Mines -8/Materials -7/Factory History --------- Turn | Location | Event 29 | -11/Scrapyard | Discovered new exit (range 16) 60 | -11/Scrapyard | Entered Materials 360 | -10/Materials | Lost 6 parts (1p2n3w) 394 | -10/Materials | Build established: Mutant 429 | -10/Materials | Discovered new exit (range 10) 677 | -10/Materials | Core integrity fell below 50% 872 | -10/Materials | Discovered new exit (range 15) 936 | -10/Materials | Discovered new exit (range 10) 991 | -10/Materials | Lost 3 parts (1p2n) 1035 | -10/Materials | Entered Mines 1059 | -10/Mines | Core integrity fell below 20% 1084 | -10/Mines | Assisted by bots powering up and referring to "LRC-V3" 1085 | -10/Mines | Learned 8 Materials zone layouts 1137 | -10/Mines | Discovered new exit (range 15) 1152 | -10/Mines | Learned location of Storage (-9) 1177 | -10/Mines | Deemed a non-threat by the Exiles lab entrance 1178 | -10/Mines | Discovered new exit (range 5) 1190 | -10/Mines | Entered Exiles 1190 | -10/Exiles | Accompanied by 3 allies 1213 | -10/Exiles | Met 8R-AWN 1232 | -10/Exiles | Met EX-HEX 1261 | -10/Exiles | Met EX-BIN 1272 | -10/Exiles | Aligned with FarCom system 1273 | -10/Exiles | Given EX-Vault access code 1296 | -10/Exiles | Opened EX-Vault 1319 | -10/Exiles | Build established: Scavenger-Mutant 1329 | -10/Exiles | Found Cloak of Protection 1333 | -10/Exiles | Found AWS/Thermal 1358 | -10/Exiles | Found Supersonic Drone Bay 1396 | -10/Exiles | Warned to stay clear of 0b10 Research branches 1425 | -10/Exiles | Met EX-DEC 1504 | -10/Exiles | Visited The Gauntlet 1653 | -10/Exiles | Discovered new exit (range 14) 1672 | -10/Exiles | Stole three prototypes: Cloak of Protection, Supersonic Drone Bay, AWS/Thermal 1672 | -10/Exiles | Entered Mines 1672 | -9/Mines | Accompanied by 3 allies 1794 | -9/Mines | Assisted by bots powering up and referring to "LRC-V3" 1915 | -9/Mines | Discovered new exit (range 5) 1924 | -9/Mines | Entered Materials 1924 | -8/Materials | Evolved 4 slots: Utility x4 1925 | -8/Materials | Identified exit to Factory 2193 | -8/Materials | Lost 5 parts (2p1n1u1w) 2603 | -8/Materials | Build established: Hauler-Mutant 2625 | -8/Materials | Entered Factory 2625 | -7/Factory | Evolved 2 slots: Utility x2 2627 | -7/Factory | FarCom data flow suspended 3298 | -7/Factory | Build established: Scavenger-Mutant 3485 | -7/Factory | Lost 5 parts (1p2n1u1w) 3586 | -7/Factory | Lost 6 parts (4n1u1w) 3728 | -7/Factory | Self-destructed Last Messages --------------- 03688_ Acquired Wheel. 03688_ K-01 Serf collects debris. 03689_ Acquired 18 matter. 03689_ K-01 Serf collects debris. 03691_ Extracted 26 matter. 03692_ K-01 Serf collects debris. 03694_ W-25 Informer sends out distress signal. 03695_ Target Analyzer melted. 03695_ P-60 Hacker destroyed. 03701_ ALERT: Hostiles spotted, dispatching reinforcements to Terminal F013. 03713_ System corrupted: Matter fused (-5). 03717_ R-06 Scavenger collects Assault Rifle. 03719_ W-25 Informer sends out distress signal. 03723_ H-55 Commando destroyed. 03725_ K-01 Serf destroyed. 03725_ Acquired Shock Rifle. 03725_ K-01 Serf collects debris. 03726_ Acquired 42 matter. 03726_ R-06 Scavenger collects Gravmag System. Map ----- +----------------------------------------------------+ | ?????????????????????????? ???????? | | ??????????????????????????# ???????? | | ??????????????????????????# """ """ """ """?????? | | ?????????????????????????## """ """ """ """ ????? | | ?????????????????????????# """ """ """ """ ??? | | ?????????????????????????# ????? | | ?????????????????????????# """ ""??????? | | ?????????????????????????# """G""??????? | | ?????????????????????????# ###########??????? | | ?????????????????????????# #????????????????? | | ?????????????????????????# ##+########?????????? | | ?????????????????????????# # #?????????? | | ?????????????????????????# # #?????????? | | ?????????????????????????# # """"""" #?????????? | | ???????????############### / """"""" #?????????? | | ???????????# # # # """"""" #?????????? | | ???????????# # """ # !# """"""" #?????????? | | ???????????# # """ # [%# #?????????? | | ???????????# # """ # [=#! #?????????? | | ???????#####= #! # ##########??????????? | | ???????# #[ !# """ # #?????#############?? | | ???????# + | # """ # #?????# #? | | ???????# #%! # """ # ####### #? | | ???????# #% # # # ! #? | | ######## *###########/### r # #? | | *%= * ! u =@ # #? | | =^ w* T # #? | | g b!u g% "" # #? | | % ^ ^ = # #? | | ^ ^ k % # #? | | ########+################# #! #? | | ?????# #?????????# k # #? | | ?????# """"""" #?????????## ## #? | | ?????# """"""" #??????????# ####+########??? | | ?????# """"""" #??????????# #?????? | | ?????# """"""" #??????????# #?????? | | ?????# #??????????# """ = #?????? | | ?????# #??????????# " #?????? | | ?????# ! #??????????# #?????? | | ?????########+##??????????# #?????? | | ?????# # #???????????# #?????? | | ?????# # ############# #?????? | | ?????# # #?????? | | ?????# # ######? | | ?????# # #? | | ?????# # #? | | ?????# """" + #? | | ?????# """" # #? | | ?????# """" # #? | | ?????# """" ####+########## #? | +----------------------------------------------------+ Best States ------------- Heat Dissipation 62 Energy Generation 16 Energy Capacity 290 Matter Stores 316 Matter Capacity 450 Sight Range 20 Terrain Scan Density 10 Armor Coverage 225 Core Shielding 20 Evasion (%) 44 Targeting Accuracy 5 Recoil Reduction 1 Item Schematics ----------------- Wheel | -10/Materials | Hacked Robot Schematics ------------------ None Fabricated ------------ Nothing Alien Tech Used ----------------- None Achievements -------------- None Challenges ------------ None Game ------ Seed WeldingInsulatedConverter Manual? 0 Play Time 00:37:31 Cumulative 39.4 hours Start 2019.12.20 @ 20:41:14 End 2019.12.20 @ 23:25:52 Sessions 3 Manual Loads 0 Difficulty Rogue Special Mode None Game No. 37 Rogue 37 Adventurer 0 Explorer 0 Win Type - Total 0 Types 0/0/0/0/0/0/0 Lore% 32 Gallery% 37 Achievement% 32 Wizard Run 0 Options --------- ASCII 0 Keyboard 0 Movement Mouse Keybinds 0 Fullscreen 2 Font 18/Smallcaps Map View 76x50 Tactical HUD 1 Map Filters NONE Filters NONE Steam 1 RUN: deb3b3ef-efba-482a-8acd-97181713c3ed